Cogmind - Beta 16.1 @@@ ROGUE MODE // 2026.02.19 @ 20:43:52 Player: Ringtail Result: Self-destructed Performance ------------- Evolutions (2) 1000 Regions Visited (3) 600 Robots Destroyed (18) 90 Value Destroyed (519) 519 Prototype IDs (2) 40 Alien Tech Used (0) 0 Bonus (200) 200 TOTAL SCORE: 2449 Bonus ------- Pacifist 200 Cogmind --------- Core Integrity 18/550 Matter 250/300 Energy 125/125 System Corruption 0% Temperature Cool (0) Movement Walking (260) Ox2 Location -8/Materials Parts ------- > --- POWER (2) -------- Light Ion Engine > --- PROPULSION (3) --- Carbon-fiber Leg Carbon-fiber Leg > --- UTILITY (4) ------ Heat Sink Huge Storage Unit Visual Processing Unit > --- WEAPON (2) ------- (None) > --- INVENTORY (25) --- Light Treads Wheel Compact Matter Pod (150) Rocket Launcher Peak State ------------ > --- POWER ------------ Ion Engine Ion Engine > --- PROPULSION ------- Compact Wheel Compact Wheel > --- UTILITY ---------- Huge Storage Unit Visual Processing Unit Core Shielding Shield Generator > --- WEAPON ----------- Shock Rifle Medium Laser > --- INVENTORY -------- Light Ion Engine Heat Sink Compact Matter Pod Beam Rifle Assault Rifle Assault Rifle Rocket Launcher Rocket Launcher [Rating: 15] Favorites ----------- Power Ion Engine Engine Ion Engine Propulsion Compact Wheel Leg Carbon-fiber Leg Wheel Compact Wheel Utility Core Shielding Device Shield Generator Storage Huge Storage Unit Processor Visual Processing Unit Protection Core Shielding Weapon Medium Laser Energy Gun Medium Laser Ballistic Gun Heavy Assault Rifle Launcher Rocket Launcher Build | -11 -10 -9 -8 ------- Run | Yrd Mat Mat Mat Slots Evolved 4 | . . 2 2 Power 1 | . . 1 . Propulsion 1 | . . 1 . Utility 2 | . . . 2 Weapon . | . . . . Parts Attached 23 | 5 2 5 11 Power 3 | 1 . 1 1 Engine 3 | 1 . 1 1 Core . | . . . . Reactor . | . . . . Propulsion 6 | 1 . 2 3 Treads . | . . . . Leg 3 | . . 1 2 Wheel 3 | 1 . 1 1 Hover . | . . . . Flight . | . . . . Utility 7 | 1 2 1 3 Device 2 | . . . 2 Storage 3 | 1 1 1 . Processor 1 | . . . 1 Hackware . | . . . . Protection 1 | . 1 . . Artifact . | . . . . Weapon 7 | 2 . 1 4 Energy Gun 3 | 1 . . 2 Energy Cannon . | . . . . Ballistic Gun 3 | 1 . 1 1 Ballistic Cannon . | . . . . Launcher 1 | . . . 1 Special Weapon . | . . . . Impact Weapon . | . . . . Slashing Weapon . | . . . . Piercing Weapon . | . . . . Special Melee Weapon . | . . . . Unidentified Prototypes . | . . . . Parts Lost 13 | . . . 13 Power 2 | . . . 2 Propulsion 2 | . . . 2 Utility 2 | . . . 2 Weapon 7 | . . . 7 Highest Loss Streak 12 | . . . 12 To Critical Strikes . | . . . . Average Backups 5 | 1 2 6 7 Power . | . 1 1 . Propulsion . | . 1 . . Utility 1 | . . 1 1 Weapon 2 | . . 3 4 Tool/Special . | . . . . Unused Backups 3 | . . . 3 Power . | . . . . Propulsion 1 | . . . 1 Utility 1 | . . . 1 Weapon 1 | . . . 1 Tool/Special . | . . . . Average Slot Usage (%) 72 | . 75 77 67 Engine 12 | . 14 11 12 Wheel 15 | . 14 21 10 Device 2 | . . . 6 Storage 10 | . 14 11 9 Processor 3 | . . . 8 Protection 7 | . 4 11 5 Energy Gun 9 | . 14 11 7 Ballistic Gun 8 | . 14 11 4 Peak Build Rating 15 | 5 6 10 15 Average Rating 8 | 3 5 8 11 On Entrance 5 | . 5 6 10 Avg Prop Armor Cover (%) . | . . . . Naked Turns . | . . . . Heaviest Build 98 | 14 30 96 98 Greatest Support 32 | 16 16 32 32 Greatest Overweight (x) 27 | . 1 2 27 Average Overweight (x) 1 | . . . 3 Largest Inventory Capacity 25 | 8 15 25 25 Average Capacity 19 | 7 11 19 25 Most Carried 10 | 5 4 10 10 Average Carried 5 | 2 2 6 7 Final Capacity 25 | 8 15 25 25 Final Carried 9 | 2 3 9 4 Class Distribution -------------------- 100% | Mutant Dominant Class ---------------- Mutant | -10/Materials Mutant | -9/Materials Mutant | -8/Materials Resources | -11 -10 -9 -8 ----------- Run | Yrd Mat Mat Mat Matter Collected 595 | 170 . 198 227 Remotely . | . . . . Salvage Created 647 | . . 301 346 Parts 41 | . . 22 19 Haulers Intercepted . | . . . . Recyclers Shooed 1 | . . . 1 Parts Field Recycled . | . . . . Retrieved Matter . | . . . . Parts Self-Destructed . | . . . . Prevented . | . . . . Parts Restored . | . . . . Kills | -11 -10 -9 -8 ------- Run | Yrd Mat Mat Mat Combat Hostiles Destroyed 12 | . . 7 5 Guns 10 | . . 7 3 AOE 2 | . . . 2 Classes Destroyed 7 | . . 4 3 Worker 3 | . . . 3 Builder 1 | . . . 1 Watcher 2 | . . 1 1 Swarmer 2 | . . 2 . Grunt 3 | . . 2 1 Sentry 5 | . . 3 2 Hunter 2 | . . . 2 Best Kill Streak 4 | . . 3 4 Combat Bots Only 3 | . . 3 2 Max Kills in Single Turn 2 | . . 1 2 Gunslinging . | . . . . Exploded 1 | . . . 1 Melee . | . . . . Uniques/NPCs Destroyed . | . . . . Combat | -11 -10 -9 -8 -------- Run | Yrd Mat Mat Mat Hostile Shots Fired 185 | . . 35 150 Missed 51 | . . 10 41 Hits 134 | . . 25 109 Projectile 134 | . . 25 109 Critical Strikes 9 | . . 2 7 Actively Blocked 1 | . . . 1 Damage Taken 1780 | . . 340 1440 Core 628 | . . 96 532 Absorbed by Shields 101 | . . . 101 Redirected to Shielding 52 | . . 20 32 Core Remaining (%) 92 | 100 100 76 . Volleys Fired 48 | . . 20 28 Largest 2 | . . 2 2 Hottest 100 | . . 73 100 Shots Fired 79 | . . 40 39 Gun 77 | . . 40 37 Cannon . | . . . . Launcher 2 | . . . 2 Special . | . . . . Kinetic 31 | . . 20 11 Thermal 36 | . . 20 16 Explosive 2 | . . . 2 Electromagnetic 10 | . . . 10 Robot Hit Streak 21 | . . 10 21 Robot Miss Streak 2 | . . 2 2 Penetration Max . | . . . . Secondary Targets . | . . . . Shots Hit Robots 60 | . . 28 32 Core Hits 29 | . . 13 16 Critical Kills 1 | . . 1 . Critical Parts Destroyed . | . . . . Critical Strikes 3 | . . 2 1 Burn 2 | . . 1 1 Destroy 1 | . . 1 . Melee Attacks . | . . . . Impact . | . . . . Slashing . | . . . . Piercing . | . . . . Sneak Attacks . | . . . . Combat Hostiles . | . . . . Follow-up Attacks . | . . . . Damage Inflicted 1253 | . . 381 872 Guns 807 | . . 381 426 Cannons . | . . . . Explosions 446 | . . . 446 Melee . | . . . . Ramming . | . . . . Kinetic 322 | . . 193 129 Thermal 609 | . . 188 421 Explosive 154 | . . . 154 Electromagnetic 168 | . . . 168 Impact . | . . . . Slashing . | . . . . Piercing . | . . . . Highest Corruption . | . . . . Average Corruption . | . . . . Corruption Purged . | . . . . Corruption Blocked . | . . . . Overload Shots . | . . . . Overflow Damage 14 | . . . 14 Projectiles . | . . . . Explosions 14 | . . . 14 Melee . | . . . . Knockbacks . | . . . . Impact . | . . . . Kinetic . | . . . . Secondary . | . . . . Self-Inflicted Damage 37 | . . . 37 Shots 2 | . . . 2 Rammed . | . . . . Targets Rammed . | . . . . Kicked . | . . . . Crushed . | . . . . Highest Temperature 195 | . . 39 195 Average Temperature 44 | . . 11 77 Received Heat Transfer 543 | . . 111 432 Siege Activations . | . . . . Martial Activations . | . . . . Shielding Activations . | . . . . Robots Disrupted . | . . . . Combat Hostiles . | . . . . Robots Corrupted . | . . . . Combat Hostiles . | . . . . Parts Fried 2 | . . . 2 Impact Corruptions . | . . . . Robots Melted . | . . . . Combat Hostiles . | . . . . Parts Melted 4 | . . 2 2 Heat Transferred 1373 | . . 629 744 Parts Sabotaged . | . . . . Parts Stolen . | . . . . Parts Stripped . | . . . . Power Chain Reactions 2 | . . . 2 Alert | -11 -10 -9 -8 ------- Run | Yrd Mat Mat Mat Maximum Alert Level . | . . . . Low Security (%) 100 | 100 100 100 100 Level 1 . | . . . . Level 2 . | . . . . Level 3 . | . . . . Level 4 . | . . . . Level 5 . | . . . . High Security . | . . . . Max Security . | . . . . Peak Influence 123 | . 9 123 59 Initial 47 | . . . 47 Average 31 | . 1 63 23 Influence Increases 434 | . 15 213 206 Destroy 0b10 Robot/C 240 | . . 140 100 Destroy 0b10 Robot/NC 30 | . . 5 25 Destroy Leader 94 | . . 52 42 Successful Hack 15 | . 15 . . Destroy Structure 25 | . . 1 24 Lose Combat Pursuer 30 | . . 15 15 Influence Decreases 412 | . 15 100 297 Entered New Map 66 | . . . 66 Time Decay 249 | . 15 100 134 Lost Part 97 | . . . 97 Squads Dispatched 3 | . . 1 2 Investigation . | . . . . Extermination . | . . . . Reinforcement 3 | . . 1 2 Assault . | . . . . Garrison . | . . . . Intercept . | . . . . Searches Triggered . | . . . . Construction Impeded 1 | . . . 1 Haulers Reinforced . | . . . . Active Scanning Responses . | . . . . Cargo Convoy Interrupts . | . . . . Stealth | -11 -10 -9 -8 --------- Run | Yrd Mat Mat Mat Distress Signals 2 | . . . 2 Communications Jammed . | . . . . Distress Signals . | . . . . Times Spotted 23 | . 3 8 12 Peak Tracking Total 6 | . 4 4 6 Tactical Retreats 2 | . . 1 1 Traps | -11 -10 -9 -8 ------- Run | Yrd Mat Mat Mat Traps Triggered . | . . . . Indirectly . | . . . . Trap Hack Attempts . | . . . . Triggered . | . . . . Disarmed . | . . . . Reprogrammed . | . . . . Reused . | . . . . Traps Extracted . | . . . . Installed . | . . . . Triggered . | . . . . Machines | -11 -10 -9 -8 ---------- Run | Yrd Mat Mat Mat Machines Disabled . | . . . . Max in Single Turn . | . . . . Machines Repaired . | . . . . Machines Dismantled . | . . . . Machines Sabotaged . | . . . . Overloaded Fab Kills . | . . . . Hacking | -11 -10 -9 -8 --------- Run | Yrd Mat Mat Mat Machines Accessed 3 | . 3 . . Terminals 3 | . 3 . . Fabricators . | . . . . Repair Stations . | . . . . Recycling Units . | . . . . Scanalyzers . | . . . . Garrison Access . | . . . . Total Hacks 8 | . 8 . . Successful 6 | . 6 . . Failed 2 | . 2 . . Catastrophic . | . . . . Database Lockouts . | . . . . Manual . | . . . . Terminals 8 | . 8 . . Fabricators . | . . . . Repair Stations . | . . . . Recycling Units . | . . . . Scanalyzers . | . . . . Garrison Access . | . . . . Terminal Hacks 6 | . 6 . . Record 1 | . 1 . . Prototype ID Bank 1 | . 1 . . Locate Traps 3 | . 3 . . Hauler Manifests 1 | . 1 . . Fabricator Hacks . | . . . . Repair Station Hacks . | . . . . Recycling Unit Hacks . | . . . . Scanalyzer . | . . . . Garrison Access Hacks . | . . . . Unauthorized Hacks . | . . . . Terminals . | . . . . Fabricators . | . . . . Repair Stations . | . . . . Recycling Units . | . . . . Scanalyzers . | . . . . Garrison Access . | . . . . Data Cores Recovered . | . . . . Used . | . . . . Hacking Detections 2 | . 2 . . Full Trace Events . | . . . . Feedback Events . | . . . . Feedback Blocked . | . . . . Robot Schematics Acquired . | . . . . Robots Built . | . . . . Authchips . | . . . . Time . | . . . . Total Robot Build Rating . | . . . . Part Schematics Acquired . | . . . . Parts Built . | . . . . Authchips . | . . . . Time . | . . . . Total Part Build Rating . | . . . . Part Studies Acquired . | . . . . Parts Repaired . | . . . . Time . | . . . . Parts Recycled . | . . . . Recycled Matter . | . . . . Retrieved Matter . | . . . . Retrieved Components . | . . . . Parts Scanalyzed . | . . . . Part Schematics Acquired . | . . . . Parts Damaged . | . . . . Bothacking | -11 -10 -9 -8 ------------ Run | Yrd Mat Mat Mat Used RIF Installer . | . . . . Robots Hacked . | . . . . Non-combat . | . . . . Combat . | . . . . Robot Hacks Applied . | . . . . Relay Couplers Released . | . . . . Fabnet Peak Effective % . | . . . . Robots Rewired . | . . . . Allies Hacked . | . . . . Hacks Repelled . | . . . . Allies | -11 -10 -9 -8 -------- Run | Yrd Mat Mat Mat Total Allies . | . . . . Largest Group . | . . . . Highest-Rated Group . | . . . . Highest-Rated Ally . | . . . . Total Orders . | . . . . Ally Attacks . | . . . . Total Damage . | . . . . Kills . | . . . . Allies Corrupted . | . . . . Allies Melted . | . . . . Intel | -11 -10 -9 -8 ------- Run | Yrd Mat Mat Mat Active Infowar (turns) 363 | . . . 363 Optics 363 | . . . 363 Robot Analysis Total . | . . . . Derelict Logs Recovered . | . . . . Drone Launches . | . . . . Drone Recoveries . | . . . . Exploration | -11 -10 -9 -8 ------------- Run | Yrd Mat Mat Mat Turns Passed 844 | 41 164 275 364 Spaces Moved 453 | 32 148 151 122 Core 10 | 6 . . 4 Treads . | . . . . Legs 16 | . . . 16 Wheels 427 | 26 148 151 102 Hover . | . . . . Flight . | . . . . Fastest Speed 50 | 50 100 100 145 Average Speed 133 | 90 105 113 201 Slowest Speed 1400 | 100 115 130 1400 Overloaded Moves . | . . . . Propulsion Burnouts . | . . . . Robots Hopped . | . . . . Potential Cave-ins . | . . . . Cave-ins Triggered . | . . . . Exploration Rate (%) 18 | 3 30 19 22 Regions Visited 3 Branch Regions . Pre-discovered Areas . | . . . . Known Exits Taken . | . . . . Unknown Exits Taken 3 | 1 1 1 . Scrap Searched . | . . . . Spaces Dug . | . . . . Terrain Destroyed 25 | . . . 25 Melee . | . . . . Projectile . | . . . . AOE 25 | . . . 25 Terrain Rammed . | . . . . Walls Destroyed . | . . . . Machines Disabled . | . . . . Actions | -11 -10 -9 -8 --------- Run | Yrd Mat Mat Mat Total 613 | 43 155 215 200 Wait 62 | . 2 28 32 Move 450 | 31 147 150 122 Hop . | . . . . Pick Up 26 | 7 3 10 6 Fast Attach . | . . . . Attach 20 | 5 1 3 11 Detach . | . . . . Swap 4 | . 1 2 1 Drop 3 | . 1 2 . Fire 48 | . . 20 28 Melee . | . . . . Ram . | . . . . Kick . | . . . . Crush . | . . . . Escape Stasis . | . . . . Rewire . | . . . . Trap . | . . . . Miscellaneous . | . . . . Route ------- -11/Scrapyard -10/Materials -9/Materials -8/Materials History --------- Turn | Location | Event 27 | -11/Scrapyard | Discovered new exit (range 14) 42 | -11/Scrapyard | Entered Materials 184 | -10/Materials | Discovered new exit (range 13) 206 | -10/Materials | Entered another Materials area 206 | -9/Materials | Evolved 2 slots: Power x1, Propulsion x1 302 | -9/Materials | Build established: Mutant 457 | -9/Materials | Discovered new exit (range 5) 481 | -9/Materials | Entered another Materials area 481 | -8/Materials | Evolved 2 slots: Utility x2 732 | -8/Materials | Core integrity fell below 50% 762 | -8/Materials | Core integrity fell below 20% 812 | -8/Materials | Lost 12 parts (2p2n2u6w) 845 | -8/Materials | Self-destructed Last Messages --------------- R-06 Scavenger collects Lgt. Armor Plating. K-01 Serf collects debris. Acquired Wheel. R-06 Scavenger collects Aluminum Leg. Acquired Carbon-fiber Leg. R-06 Scavenger collects Lgt. Treads. Penetrated by Slug. U-05 Engineer builds a Wall. U-05 Engineer lays Concrete. U-05 Engineer builds a Wall. U-05 Engineer lays Concrete. Slug penetrates Wall. U-05 Engineer lays Concrete. U-05 Engineer builds a Wall. U-05 Engineer lays Concrete. Slug penetrates Wall. ALERT: Suspicious intruders detected, dispatching Cutter reinforcements to area. [Achievement: Heavy Suspicion] Slug penetrates Wall. Map ----- +----------------------------------------------------+ | ?????????????????????????????????????????????????? | | ?????????????????????????????????????????????????? | | ?????????????????????????????????????????????????? | | ?????????????????????????????????????????????????? | | ?????????????????????????????????????????????????? | | ?????????????????????????????????????????????????? | | ?????????????????????????????????????????????????? | | ?????????????????????????????????????????????????? | | ?????????????????????????????????????????????????? | | ????????????######???????????????????????????????? | | ????????????# #######?????????????????????????? | | ????????????# # ###+#########?????????????? | | ????????????# # "" ??????????????? | | ????????????# # T ??????????????????? | | ??????""????# # ??????????????????????? | | ????# "R" ??# # #?????????????????????????? | | ????# " " ## ## ##?????????????????????????? | | ????# ## #??????????????????????????? | | ?????! "# #??????######??????????????? | | ???#####+###### ## ####### #??????????????? | | % % ### ??????? | | =% % % / ??????? | | [ % #####??????????? | | #+######+# # ### ###+### #??????????????? | | ??????? # #### ## #?#####??????????????? | | ?????#""" ?###??## ## @ #????????????????????? | | ?????#""" ????????# ## #????????????????????? | | ??????""??????????# ## #????????????????????? | | ??????????????????# ## #????????????????????? | | ??????????????????# ## #????????????????????? | | ??????????????????#% ## #????????????????????? | | ?###########??????# ## #????????????????????? | | ?# #??????# ## #????????????????????? | | ?# ######## #######????????????????????? | | ?# # ##?????????????????????????? | | ?# + ?????????????????? | | ?# # ##########?????H???????????? | | ?# ############??????????????????????????? | | ?# #?????????????????????????????????????? | | ?# #?????????????????????????????????????? | | ?########/##?????????????????????????????????????? | | ######### ########???????????????????????????????? | | #???????????????????????? | | ##+#+#############???????????????????????????????? | | #??????????????????????????????????????????? | | #??????????????????????????????????????????? | | !#??????????????????????????????????????????? | | #??????????????????????????????????????????? | | #??????????????????????????????????????????? | | #??????????????????????????????????????????? | +----------------------------------------------------+ Best States ------------- Heat Dissipation 41 Energy Generation 15 Energy Capacity 400 Matter Stores 300 Matter Capacity 300 Sight Range 18 Terrain Scan Density 10 Core Shielding 20 Evasion (%) 40 Item Schematics ----------------- None Robot Schematics ------------------ None Fabricated ------------ Nothing Repaired ---------- Nothing Studied --------- None Alien Tech Used ----------------- None Achievements -------------- Heavy Suspicion Spot Them First Challenges ------------ None Game ------ Seed ThermalDamperDeflector Manual? 0 Play Time 00:12:53 Cumulative 17.6 hours Start 2026.02.18 @ 16:49:55 End 2026.02.19 @ 20:43:52 Sessions 2 Manual Loads 0 Difficulty Rogue Special Mode None Game No. 35 Rogue 35 Adventurer 0 Explorer 0 Win Type - Total 0 Types 0/0/0/0/0/0/0/0/0/0 Lore% 9 Gallery% 16 Achievement% 12 Wizard Run 0 Options --------- Layout 1 ASCII 0 Keyboard 0 Movement Mouse Keybinds 0 Fullscreen 2 Font 24/Smallcaps Map View 50x35 Zoom Use 0% Tactical HUD 0 Map Filters NONE Filters NONE Steam 1 RUN: d93bd34b-5a53-448a-b791-3e575b098f5e